fUSD/lending_fUSD_20240514
["ID","MTS","AMOUNT","RATE_DAILY","PERIOD"]
[326993209,1715692239543,-500.0,0.00012876,2]
[326993211,1715692239552,-310.98,0.00012876,2]
[326993213,1715692239562,-500.0,0.00012876,2]
[326993214,1715692239571,-500.0,0.00012876,2]
[326993216,1715692239580,-500.0,0.00012876,2]
[326993218,1715692239590,-507.8704334,0.00012876,2]
[326993219,1715692239600,-153.184176,0.00012876,2]
[326993221,1715692239609,-500.0,0.00012876,2]
[326993223,1715692239620,-204.166222,0.00012876,2]
[326993224,1715692239630,-500.0,0.00012876,2]
[326993226,1715692239639,-500.0,0.00012876,2]
[326993228,1715692239647,-500.0,0.00012876,2]
[326993229,1715692239657,-500.0,0.00012876,2]
[326993244,1715692239839,-500.0,0.00012876,2]
[326993246,1715692239852,-500.0,0.00012876,2]
[326993248,1715692239864,-500.0,0.00012876,2]
[326993250,1715692239874,-500.0,0.00012876,2]
[326993252,1715692239883,-500.0,0.00012876,2]
[326993253,1715692239892,-500.0,0.00012876,2]
[326993255,1715692239903,-500.0,0.00012876,2]
[326993257,1715692239912,-500.0,0.00012876,2]
[326993259,1715692239922,-500.0,0.00012876,2]
[326993260,1715692239931,-500.0,0.00012876,2]
[326993262,1715692239941,-428.46,0.00012876,2]
[326993264,1715692239950,-500.0,0.00012876,2]
[326993266,1715692239959,-505.54093327,0.00012876,2]
[326993267,1715692239969,-500.0,0.00012876,2]
[326993269,1715692239979,-500.0,0.00012876,2]
[326993271,1715692239988,-500.0,0.00012876,2]
[326993273,1715692239997,-500.0,0.00012876,2]
[326993275,1715692240007,-534.560075,0.00012876,2]
[326993276,1715692240016,-538.60817753,0.00012876,2]
[326993277,1715692240025,-500.0,0.00012876,2]
[326993278,1715692240035,-500.0,0.00012876,2]
[326993279,1715692240045,-534.4756839,0.00012876,2]
[326993280,1715692240054,-505.77944516,0.00012876,2]
[326993281,1715692240064,-500.0,0.00012876,2]
[326993282,1715692240073,-167.37,0.00012876,2]
[326993283,1715692240082,-500.0,0.00012876,2]
[326993284,1715692240092,-500.0,0.00012876,2]
[326993285,1715692240101,-284.28,0.00012876,2]
[326993286,1715692240111,-150.0,0.00012876,2]
[326993287,1715692240124,-150.0,0.00012876,2]
[326993288,1715692240134,-197.88,0.00012876,2]
[326993289,1715692240144,-500.0,0.00012876,2]
[326993290,1715692240153,-310.35709105,0.00012876,2]
[326993291,1715692240162,-539.0301609,0.00012876,2]
[326993292,1715692240172,-522.34844866,0.00012876,2]
[326993293,1715692240181,-500.0,0.00012876,2]
[326993294,1715692240190,-500.0,0.00012876,2]
[326993295,1715692240199,-500.0,0.00012876,2]
[326993296,1715692240209,-535.57005951,0.00012876,2]
[326993297,1715692240218,-500.0,0.00012876,2]
[326993298,1715692240228,-500.0,0.00012876,2]
[326993299,1715692240238,-500.0,0.00012876,2]
[326993300,1715692240248,-500.0,0.00012876,2]
[326993301,1715692240257,-500.0,0.00012876,2]
[326993302,1715692240267,-5000.0,0.00012876,2]
[326993303,1715692240277,-5078.40060058,0.00012876,2]
[326993304,1715692240286,-532.06084976,0.00012876,2]
[326993305,1715692240296,-444.1,0.00012876,2]
[326993307,1715692240305,-500.0,0.00012876,2]
[326993308,1715692240314,-500.0,0.00012876,2]
[326993309,1715692240324,-500.0,0.00012876,2]
[326993310,1715692240333,-500.0,0.00012876,2]
[326993311,1715692240342,-500.0,0.00012876,2]
[326993312,1715692240351,-461.2,0.00012876,2]
[326993313,1715692240361,-500.0,0.00012876,2]
[326993314,1715692240374,-500.0,0.00012876,2]
[326993315,1715692240383,-500.0,0.00012876,2]
[326993316,1715692240392,-555.64315195,0.00012876,2]
[326993317,1715692240401,-506.46385013,0.00012876,2]
[326993318,1715692240410,-500.0,0.00012876,2]
[326993319,1715692240419,-500.0,0.00012876,2]
[326993320,1715692240427,-500.0,0.00012876,2]
[326993321,1715692240437,-618.74,0.00012876,2]
[326993322,1715692240446,-151.0,0.00012876,2]
[326993323,1715692240456,-519.99900067,0.00012876,2]
[326993324,1715692240466,-500.0,0.00012876,2]
[326993325,1715692240475,-500.0,0.00012876,2]
[326993326,1715692240485,-500.0,0.00012876,2]
[326993327,1715692240494,-302.94609602,0.00012876,2]
[326993328,1715692240504,-520.17126235,0.00012876,2]
[326993329,1715692240513,-500.0,0.00012876,2]
[326993330,1715692240522,-500.0,0.00012876,2]
[326993331,1715692240532,-195.61458435,0.00012876,2]
[326993332,1715692240542,-500.0,0.00012876,2]
[326993333,1715692240551,-500.0,0.00012876,2]
[326993334,1715692240560,-504.84717174,0.00012876,2]
[326993335,1715692240570,-500.0,0.00012876,2]
[326993336,1715692240579,-500.0,0.00012876,2]
[326993337,1715692240589,-509.20839638,0.00012876,2]
[326993338,1715692240598,-500.0,0.00012876,2]
[326993339,1715692240608,-500.0,0.00012876,2]
[326993340,1715692240620,-500.0,0.00012876,2]
[326993341,1715692240629,-500.0,0.00012876,2]
[326993342,1715692240638,-507.1,0.00012876,2]
[326993343,1715692240647,-500.0,0.00012876,2]
[326993344,1715692240656,-510.19941304,0.00012876,2]
[326993345,1715692240665,-500.0,0.00012876,2]
[326993346,1715692240675,-500.0,0.00012876,2]
[326993347,1715692240684,-500.0,0.00012876,2]
[326993348,1715692240694,-500.0,0.00012876,2]
[326993349,1715692240703,-500.0,0.00012876,2]
[326993350,1715692240718,-500.0,0.00012876,2]
[326993351,1715692240728,-500.0,0.00012876,2]
[326993352,1715692240737,-500.0,0.00012876,2]
[326993353,1715692240747,-151.0,0.00012876,2]
[326993354,1715692240758,-500.0,0.00012876,2]
[326993355,1715692240768,-500.0,0.00012876,2]
[326993356,1715692240777,-500.0,0.00012876,2]
[326993357,1715692240786,-506.80137322,0.00012876,2]
[326993358,1715692240796,-500.0,0.00012876,2]
[326993359,1715692240806,-500.0,0.00012876,2]
[326993360,1715692240816,-500.0,0.00012876,2]
[326993361,1715692240826,-518.33452741,0.00012876,2]
[326993362,1715692240836,-378.38,0.00012876,2]
[326993363,1715692240846,-151.0,0.00012876,2]
[326993364,1715692240855,-529.54040353,0.00012876,2]
[326993365,1715692240865,-557.63008404,0.00012876,2]
[326993366,1715692240874,-660.48,0.00012876,2]
[326993367,1715692240884,-660.48,0.00012876,2]
[326993368,1715692240894,-660.48,0.00012876,2]
[326993369,1715692240904,-660.48,0.00012876,2]
[326993370,1715692240913,-660.48,0.00012876,2]
[326993371,1715692240923,-500.0,0.00012876,2]
[326993372,1715692240932,-500.0,0.00012876,2]
[326993373,1715692240941,-509.49668385,0.00012876,2]
[326993374,1715692240950,-504.34,0.00012876,2]
[326993375,1715692240959,-500.0,0.00012876,2]
[326993376,1715692240969,-547.36,0.00012876,2]
[326993377,1715692240978,-547.36,0.00012876,2]
[326993378,1715692240987,-547.36,0.00012876,2]
[326993379,1715692240997,-500.0,0.00012876,2]
[326993380,1715692241006,-559.12,0.00012876,2]
[326993381,1715692241015,-151.0,0.00012876,2]
[326993382,1715692241024,-547.36,0.00012876,2]
[326993383,1715692241033,-547.36,0.00012876,2]
[326993384,1715692241043,-547.36,0.00012876,2]
[326993385,1715692241052,-500.0,0.00012876,2]
[326993386,1715692241062,-547.36,0.00012876,2]
[326993387,1715692241071,-435.22,0.00012876,2]
[326993388,1715692241082,-547.36,0.00012876,2]
[326993389,1715692241091,-547.36,0.00012876,2]
[326993390,1715692241100,-500.0,0.00012876,2]
[326993391,1715692241111,-547.36,0.00012876,2]
[326993392,1715692241122,-500.0,0.00012876,2]
[326993393,1715692241131,-547.36,0.00012876,2]
[326993394,1715692241140,-500.0,0.00012876,2]
[326993395,1715692241149,-547.36,0.00012876,2]
[326993396,1715692241158,-382.52,0.00012876,2]
[326993397,1715692241168,-547.36,0.00012876,2]
[326993398,1715692241177,-328.62136323,0.00012876,2]
[326993399,1715692241187,-500.0,0.00012876,2]
[326993400,1715692241197,-500.0,0.00012876,2]
[326993401,1715692241206,-500.0,0.00012876,2]
[326993402,1715692241215,-293.64,0.00012876,2]
[326993403,1715692241225,-151.0,0.00012876,2]
[326993404,1715692241234,-500.0,0.00012876,2]
[326993405,1715692241243,-500.0,0.00012876,2]
[326993406,1715692241252,-473.27043428,0.00012876,2]
[326993407,1715692241261,-450.28585582,0.00012876,2]
[326993408,1715692241271,-151.0,0.00012876,2]
[326993409,1715692241280,-1557.62,0.00012876,2]
[326993410,1715692241290,-151.0,0.00012876,2]
[326993411,1715692241299,-1557.62,0.00012876,2]
[326993412,1715692241308,-1557.62,0.00012876,2]
[326993413,1715692241318,-1557.62,0.00012876,2]
[326993414,1715692241327,-500.0,0.00012876,2]
[326993415,1715692241337,-1557.62,0.00012876,2]
[326993416,1715692241346,-500.0,0.00012876,2]
[326993417,1715692241355,-500.0,0.00012876,2]
[326993418,1715692241365,-1557.62,0.00012876,2]
[326993419,1715692241375,-500.0,0.00012876,2]
[326993420,1715692241385,-500.0,0.00012876,2]
[326993421,1715692241394,-310.97627355,0.00012876,2]
[326993422,1715692241403,-1557.62,0.00012876,2]
[326993423,1715692241412,-500.0,0.00012876,2]
[326993424,1715692241421,-500.0,0.00012876,2]
[326993425,1715692241430,-1557.62,0.00012876,2]
[326993426,1715692241439,-1557.62,0.00012876,2]
[326993427,1715692241448,-500.0,0.00012876,2]
[326993428,1715692241457,-500.0,0.00012876,2]
[326993429,1715692241466,-1557.62,0.00012876,2]
[326993430,1715692241476,-500.0,0.00012876,2]
[326993431,1715692241485,-1557.62,0.00012876,2]
[326993432,1715692241494,-342.56674424,0.00012876,2]
[326993433,1715692241503,-1557.62,0.00012876,2]
[326993434,1715692241512,-500.0,0.00012876,2]
[326993435,1715692241521,-1557.62,0.00012876,2]
[326993436,1715692241530,-500.0,0.00012876,2]
[326993437,1715692241539,-500.0,0.00012876,2]
[326993438,1715692241548,-500.0,0.00012876,2]
[326993439,1715692241557,-376.42,0.00012876,2]
[326993440,1715692241566,-500.0,0.00012876,2]
[326993441,1715692241575,-500.0,0.00012876,2]
[326993442,1715692241585,-500.0,0.00012876,2]
[326993443,1715692241594,-500.0,0.00012876,2]
[326993444,1715692241603,-511.72,0.00012876,2]
[326993445,1715692241613,-500.0,0.00012876,2]
[326993446,1715692241623,-643.28,0.00012876,2]
[326993447,1715692241632,-500.0,0.00012876,2]
[326993448,1715692241641,-500.0,0.00012876,2]
[326993449,1715692241651,-500.0,0.00012876,2]
[326993450,1715692241660,-500.0,0.00012876,2]
[326993451,1715692241669,-500.0,0.00012876,2]
[326993452,1715692241678,-497.06249531,0.00012876,2]
[326993453,1715692241687,-510.77935046,0.00012876,2]
[326993454,1715692241697,-500.0,0.00012876,2]
[326993455,1715692241706,-500.0,0.00012876,2]
[326993456,1715692241716,-151.0,0.00012876,2]
[326993457,1715692241729,-500.0,0.00012876,2]
[326993458,1715692241738,-500.0,0.00012876,2]
[326993459,1715692241748,-500.0,0.00012876,2]
[326993460,1715692241758,-358.98140872,0.00012876,2]
[326993461,1715692241769,-531.8790226,0.00012876,2]
[326993462,1715692241779,-500.0,0.00012876,2]
[326993463,1715692241788,-500.0,0.00012876,2]
[326993464,1715692241799,-543.69783746,0.00012876,2]
[326993465,1715692241808,-500.0,0.00012876,2]
[326993466,1715692241817,-504.72595063,0.00012876,2]
[326993467,1715692241827,-500.0,0.00012876,2]
[326993468,1715692241837,-151.0,0.00012876,2]
[326993469,1715692241846,-500.0,0.00012876,2]
[326993470,1715692241856,-156.81633385,0.00012876,2]
[326993471,1715692241866,-500.0,0.00012876,2]
[326993472,1715692241875,-500.0,0.00012876,2]
[326993473,1715692241884,-500.0,0.00012876,2]
[326993474,1715692241894,-596.72,0.00012876,2]
[326993475,1715692241903,-151.0,0.00012876,2]
[326993476,1715692241912,-500.0,0.00012876,2]
[326993477,1715692241922,-504.35659364,0.00012876,2]
[326993478,1715692241931,-500.0,0.00012876,2]
[326993479,1715692241939,-500.0,0.00012876,2]
[326993480,1715692241948,-504.85922279,0.00012876,2]
[326993481,1715692241958,-514.22524459,0.00012876,2]
[326993482,1715692241966,-500.0,0.00012876,2]
[326993483,1715692241976,-500.0,0.00012876,2]
[326993484,1715692241985,-500.0,0.00012876,2]
[326993485,1715692241994,-507.98768071,0.00012876,2]
[326993486,1715692242003,-500.0,0.00012876,2]
[326993487,1715692242012,-396.88,0.00012876,2]
[326993488,1715692242022,-151.0,0.00012876,2]
[326993489,1715692242031,-500.0,0.00012876,2]
[326993490,1715692242041,-500.0,0.00012876,2]
[326993491,1715692242050,-170.73276719,0.00012876,2]
[326993492,1715692242059,-500.0,0.00012876,2]
[326993493,1715692242068,-506.88239078,0.00012876,2]
[326993494,1715692242078,-391.22474978,0.00012876,2]
[326993495,1715692242087,-594.7390456,0.00012876,2]
[326993496,1715692242097,-151.0,0.00012876,2]
[326993497,1715692242106,-500.0,0.00012876,2]
[326993498,1715692242119,-500.0,0.00012876,2]
[326993499,1715692242128,-500.0,0.00012876,2]
[326993500,1715692242137,-500.0,0.00012876,2]
[326993501,1715692242146,-500.0,0.00012876,2]
[326993502,1715692242155,-513.59243124,0.00012876,2]
[326993503,1715692242164,-500.0,0.00012876,2]
[326993504,1715692242173,-507.97643934,0.00012876,2]
[326993505,1715692242182,-1896.63,0.00012876,2]
[326993506,1715692242191,-1896.63,0.00012876,2]
[326993507,1715692242199,-1896.63,0.00012876,2]
[326993508,1715692242208,-1896.63,0.00012876,2]
[326993509,1715692242217,-1896.63,0.00012876,2]
[326993510,1715692242226,-1896.63,0.00012876,2]
[326993511,1715692242235,-1896.63,0.00012876,2]
[326993512,1715692242244,-1896.63,0.00012876,2]
[326993513,1715692242254,-1896.63,0.00012876,2]
[326993514,1715692242264,-1896.63,0.00012876,2]
[326993515,1715692242273,-1896.63,0.00012876,2]
[326993516,1715692242282,-1896.63,0.00012876,2]
[326993517,1715692242291,-1896.63,0.00012876,2]
[326993518,1715692242300,-500.0,0.00012876,2]
[326993519,1715692242309,-500.0,0.00012876,2]
[326993520,1715692242318,-644.68,0.00012876,2]
[326993521,1715692242327,-505.98441816,0.00012876,2]
[326993522,1715692242336,-500.0,0.00012876,2]
[326993523,1715692242345,-500.0,0.00012876,2]
[326993524,1715692242355,-500.0,0.00012876,2]
[326993525,1715692242364,-507.48226951,0.00012876,2]
[326993526,1715692242378,-365.87237198,0.00012876,2]
[326993527,1715692242387,-500.0,0.00012876,2]
[326993528,1715692242396,-504.71427429,0.00012876,2]
[326993529,1715692242406,-150.0,0.00012876,2]
[326993531,1715692242415,-150.0,0.00012876,2]
[326993532,1715692242423,-150.0,0.00012876,2]
[326993533,1715692242433,-150.0,0.00012876,2]
[326993534,1715692242442,-150.0,0.00012876,2]
[326993535,1715692242451,-500.0,0.00012876,2]
[326993536,1715692242460,-502.84801673,0.00012876,2]
[326993537,1715692242469,-204.84,0.00012876,2]
[326993538,1715692242478,-822.56,0.00012876,2]
[326993539,1715692242487,-822.56,0.00012876,2]
[326993541,1715692242496,-822.56,0.00012876,2]
[326993542,1715692242505,-822.56,0.00012876,2]
[326993543,1715692242515,-822.56,0.00012876,2]
[326993544,1715692242523,-500.0,0.00012876,2]
[326993545,1715692242532,-500.0,0.00012876,2]
[326993546,1715692242541,-504.42189491,0.00012876,2]
[326993547,1715692242550,-500.0,0.00012876,2]
[326993548,1715692242559,-500.0,0.00012876,2]
[326993549,1715692242568,-500.0,0.00012876,2]
[326993550,1715692242577,-500.0,0.00012876,2]
[326993551,1715692242586,-500.0,0.00012876,2]
[326993552,1715692242595,-629.01166224,0.00012876,2]
[326993553,1715692242604,-500.0,0.00012876,2]
[326993554,1715692242613,-500.0,0.00012876,2]
[326993555,1715692242625,-510.19653349,0.00012876,2]
[326993556,1715692242634,-508.79013405,0.00012876,2]
[326993557,1715692242644,-500.0,0.00012876,2]
[326993558,1715692242653,-500.0,0.00012876,2]
[326993559,1715692242662,-500.0,0.00012876,2]
[326993560,1715692242672,-500.0,0.00012876,2]
[326993561,1715692242684,-500.0,0.00012876,2]
[326993563,1715692242695,-500.0,0.00012876,2]
[326993564,1715692242706,-500.0,0.00012876,2]
[326993566,1715692242719,-519.96758789,0.00012876,2]
[326993567,1715692242731,-500.0,0.00012876,2]
[326993569,1715692242740,-500.0,0.00012876,2]
[326993570,1715692242750,-500.0,0.00012876,2]
[326993572,1715692242762,-500.0,0.00012876,2]
[326993573,1715692242772,-500.0,0.00012876,2]
[326993574,1715692242781,-441.75,0.00012876,2]
[326993575,1715692242791,-500.0,0.00012876,2]
[326993576,1715692242801,-500.0,0.00012876,2]
[326993577,1715692242810,-500.0,0.00012876,2]
[326993578,1715692242819,-500.0,0.00012876,2]
[326993579,1715692242828,-500.0,0.00012876,2]
[326993580,1715692242838,-500.0,0.00012876,2]
[326993581,1715692242848,-500.0,0.00012876,2]
[326993582,1715692242857,-500.0,0.00012876,2]
[326993583,1715692242868,-500.0,0.00012876,2]
[326993584,1715692242878,-500.0,0.00012876,2]
[326993585,1715692242888,-405.97597141,0.00012876,2]
[326993586,1715692242898,-500.0,0.00012876,2]
[326993587,1715692242908,-400.73321834,0.00012876,2]
[326993593,1715692243646,-102.37057098,0.00012876,2]
[326993594,1715692243656,-500.0,0.00012876,2]
[326993595,1715692243666,-632.82942902,0.00012876,2]
[326993596,1715692243693,-1641.02539894,0.0001169,2]
[326993597,1715692243704,-1076.57746343,0.0001169,2]
[326993598,1715692243719,-137.00057098,0.00012876,2]
[326993599,1715692243728,-500.0,0.00012876,2]
[326993600,1715692243737,-513.91,0.00012876,2]
[326993601,1715692243746,-769.83,0.00012876,2]
[326993602,1715692243757,-769.83,0.00012876,2]
[326993603,1715692243767,-769.83,0.00012876,2]
[326993604,1715692243776,-500.0,0.00012876,2]
[326993605,1715692243785,-500.0,0.00012876,2]
[326993606,1715692243796,-500.0,0.00012876,2]
[326993607,1715692243807,-769.83,0.00012876,2]
[326993608,1715692243816,-503.70331148,0.00012876,2]
[326993609,1715692243825,-500.0,0.00012876,2]
[326993610,1715692243834,-500.0,0.00012876,2]
[326993611,1715692243844,-151.0,0.00012876,2]
[326993612,1715692243853,-426.67,0.00012876,2]
[326993613,1715692243863,-500.0,0.00012876,2]
[326993614,1715692243873,-500.0,0.00012876,2]
[326993615,1715692243882,-500.0,0.00012876,2]
[326993616,1715692243891,-262.32,0.00012876,2]
[326993617,1715692243900,-500.0,0.00012876,2]
[326993618,1715692243910,-202.8243946,0.00012876,2]
[326993619,1715692243919,-500.0,0.00012876,2]
[326993620,1715692243928,-500.0,0.00012876,2]
[326993621,1715692243938,-500.0,0.00012876,2]
[326993622,1715692243947,-217.16,0.00012876,2]
[326993623,1715692243957,-170.301944,0.00012876,2]
[326993624,1715692243967,-191.85,0.00012876,2]
[326993625,1715692243976,-536.58,0.00012876,2]
[326993626,1715692243987,-864.11,0.00012876,2]
[326993627,1715692243997,-864.11,0.00012876,2]
[326993628,1715692244006,-864.11,0.00012876,2]
[326993629,1715692244015,-864.11,0.00012876,2]
[326993630,1715692244025,-864.11,0.00012876,2]
[326993631,1715692244035,-506.51,0.00012876,2]
[326993632,1715692244045,-500.0,0.00012876,2]
[326993633,1715692244055,-514.73190307,0.00012876,2]
[326993634,1715692244064,-500.0,0.00012876,2]
[326993635,1715692244073,-500.0,0.00012876,2]
[326993636,1715692244084,-500.0,0.00012876,2]
[326993637,1715692244093,-500.0,0.00012876,2]
[326993638,1715692244103,-500.0,0.00012876,2]
[326993639,1715692244114,-500.0,0.00012876,2]
[326993640,1715692244126,-500.0,0.00012876,2]
[326993641,1715692244135,-506.73816185,0.00012876,2]
[326993642,1715692244144,-374.0,0.00012876,2]
[326993643,1715692244153,-548.18,0.00012876,2]
[326993644,1715692244162,-500.0,0.00012876,2]
[326993645,1715692244171,-500.0,0.00012876,2]
[326993646,1715692244181,-574.56,0.00012876,2]
[326993647,1715692244190,-500.0,0.00012876,2]
[326993648,1715692244200,-500.0,0.00012876,2]
[326993649,1715692244209,-500.0,0.00012876,2]
[326993650,1715692244219,-259.74,0.00012876,2]
[326993651,1715692244227,-500.0,0.00012876,2]
[326993652,1715692244237,-491.75279059,0.00012876,2]
[326993653,1715692244253,-15.01327513,0.00012876,2]
[326993654,1715692244262,-500.0,0.00012876,2]
[326993655,1715692244272,-384.2,0.00012876,2]
[326993656,1715692244282,-500.0,0.00012876,2]
[326993657,1715692244291,-211.42342617,0.00012876,2]
[326993658,1715692244300,-500.0,0.00012876,2]
[326993659,1715692244309,-429.53,0.00012876,2]
[326993660,1715692244318,-508.57709262,0.00012876,2]
[326993661,1715692244328,-169.959184,0.00012876,2]
[326993662,1715692244337,-472.23911308,0.00012876,2]
[326993663,1715692244349,-27.76088692,0.00012876,2]
[326993664,1715692244358,-509.3101799,0.00012876,2]
[326993665,1715692244369,-500.0,0.00012876,2]
[326993666,1715692244379,-500.0,0.00012876,2]
[326993667,1715692244390,-169.959184,0.00012876,2]
[326993668,1715692244399,-500.0,0.00012876,2]
[326993669,1715692244409,-500.0,0.00012876,2]
[326993670,1715692244419,-500.0,0.00012876,2]
[326993671,1715692244429,-514.28050495,0.00012876,2]
[326993672,1715692244437,-1605.0,0.00012876,2]
[326993673,1715692244447,-1605.0,0.00012876,2]
[326993674,1715692244456,-1605.0,0.00012876,2]
[326993675,1715692244465,-1605.0,0.00012876,2]
[326993676,1715692244475,-1605.0,0.00012876,2]
[326993677,1715692244484,-1378.75004664,0.00012876,2]
[326993678,1715692244496,-226.24995336,0.00012876,2]
[326993679,1715692244506,-1605.0,0.00012876,2]
[326993680,1715692244516,-500.0,0.00012876,2]
[326993681,1715692244526,-1605.0,0.00012876,2]
[326993682,1715692244536,-1563.75004664,0.00012876,2]
[326993683,1715692244556,-41.24995336,0.00012876,2]
[326993684,1715692244566,-1605.0,0.00012876,2]
[326993685,1715692244575,-1605.0,0.00012876,2]
[326993686,1715692244584,-1605.0,0.00012876,2]
[326993687,1715692244594,-1605.0,0.00012876,2]
[326993688,1715692244603,-500.0,0.00012876,2]
[326993689,1715692244612,-500.0,0.00012876,2]
[326993690,1715692244623,-500.0,0.00012876,2]
[326993691,1715692244633,-520.42257077,0.00012876,2]
[326993692,1715692244642,-500.0,0.00012876,2]
[326993693,1715692244652,-500.0,0.00012876,2]
[326993694,1715692244662,-413.98768566,0.00012876,2]
[326993695,1715692244671,-500.0,0.00012876,2]
[326993696,1715692244681,-505.47572305,0.00012876,2]
[326993697,1715692244690,-500.0,0.00012876,2]
[326993698,1715692244700,-500.0,0.00012876,2]
[326993699,1715692244710,-152.14,0.00012876,2]
[326993700,1715692244720,-500.0,0.00012876,2]
[326993701,1715692244731,-505.17160926,0.00012876,2]
[326993702,1715692244740,-507.02947721,0.00012876,2]
[326993703,1715692244750,-500.0,0.00012876,2]
[326993704,1715692244759,-505.72328286,0.00012876,2]
[326993705,1715692244769,-552.31533622,0.00012876,2]
[326993706,1715692244778,-440.4256708,0.00012876,2]
[326993707,1715692244788,-500.0,0.00012876,2]
[326993708,1715692244800,-503.59068848,0.00012876,2]
[326993709,1715692244809,-505.64656316,0.00012876,2]
[326993710,1715692244819,-500.0,0.00012876,2]
[326993711,1715692244828,-316.74,0.00012876,2]
[326993712,1715692244838,-151.0,0.00012876,2]
[326993713,1715692244847,-605.54,0.00012876,2]
[326993714,1715692244857,-211.393526,0.00012876,2]
[326993715,1715692244866,-500.0,0.00012876,2]
[326993716,1715692244877,-192.72172056,0.00012876,2]
[326993717,1715692244886,-500.0,0.00012876,2]
[326993718,1715692244896,-538.25688662,0.00012876,2]
[326993719,1715692244906,-211.393526,0.00012876,2]
[326993720,1715692244916,-467.75542855,0.00012876,2]
[326993721,1715692244925,-500.0,0.00012876,2]
[326993722,1715692244935,-500.0,0.00012876,2]
[326993723,1715692244946,-500.0,0.00012876,2]
[326993724,1715692244956,-500.0,0.00012876,2]
[326993725,1715692244965,-575.21,0.00012876,2]
[326993726,1715692244975,-500.0,0.00012876,2]
[326993727,1715692244985,-500.0,0.00012876,2]
[326993728,1715692244994,-500.0,0.00012876,2]
[326993729,1715692245003,-500.0,0.00012876,2]
[326993730,1715692245013,-500.0,0.00012876,2]
[326993731,1715692245022,-500.0,0.00012876,2]
[326993732,1715692245031,-500.0,0.00012876,2]
[326993733,1715692245040,-500.0,0.00012876,2]
[326993734,1715692245049,-595.46854081,0.00012876,2]
[326993735,1715692245058,-500.0,0.00012876,2]
[326993736,1715692245067,-500.0,0.00012876,2]
[326993737,1715692245076,-520.78,0.00012876,2]
[326993738,1715692245085,-500.0,0.00012876,2]
[326993739,1715692245094,-500.0,0.00012876,2]
[326993740,1715692245104,-500.0,0.00012876,2]
[326993741,1715692245113,-520.6257289,0.00012876,2]
[326993742,1715692245124,-500.0,0.00012876,2]
[326993743,1715692245133,-500.0,0.00012876,2]
[326993744,1715692245142,-500.0,0.00012876,2]
[326993745,1715692245153,-1167.12,0.00012876,2]
[326993746,1715692245163,-1167.12,0.00012876,2]
[326993747,1715692245172,-500.0,0.00012876,2]
[326993748,1715692245182,-500.0,0.00012876,2]
[326993749,1715692245191,-1167.12,0.00012876,2]
[326993750,1715692245200,-1167.12,0.00012876,2]
[326993751,1715692245209,-1167.12,0.00012876,2]
[326993752,1715692245218,-500.0,0.00012876,2]
[326993753,1715692245227,-505.96807435,0.00012876,2]
[326993754,1715692245237,-629.63,0.00012876,2]
[326993755,1715692245246,-573.74282422,0.00012876,2]
[326993756,1715692245256,-816.25,0.00012876,2]